fUST/lending_fUST_20240808
["ID","MTS","AMOUNT","RATE_DAILY","PERIOD"]
[334440163,1723101041301,-500.0,0.00027397,7]
[334440164,1723101041312,-500.0,0.00027397,7]
[334440165,1723101041321,-500.0,0.00027397,7]
[334440166,1723101041330,-338.00009204,0.00027397,7]
[334440167,1723101041339,-500.0,0.00027397,7]
[334440168,1723101041348,-501.65568324,0.00027397,7]
[334440169,1723101041360,-504.60088572,0.00027397,7]
[334440170,1723101041369,-561.81,0.00027397,7]
[334440171,1723101041379,-505.853776,0.00027397,7]
[334440172,1723101041388,-536.17,0.00027397,7]
[334440173,1723101041397,-504.49658483,0.00027397,7]
[334440174,1723101041406,-500.0,0.00027397,7]
[334440175,1723101041416,-500.0,0.00027397,7]
[334440176,1723101041430,-500.0,0.00027397,7]
[334440177,1723101041439,-500.0,0.00027397,7]
[334440178,1723101041449,-500.0,0.00027397,7]
[334440179,1723101041458,-366.79524006,0.00027397,7]
[334440180,1723101041471,-529.87996474,0.00027397,7]
[334440181,1723101041482,-500.0,0.00027397,7]
[334440182,1723101041492,-156.76019213,0.00027397,7]
[334440183,1723101041505,-502.68604022,0.00027397,7]
[334440184,1723101041515,-500.0,0.00027397,7]
[334440185,1723101041525,-500.0,0.00027397,7]
[334440186,1723101041534,-500.0,0.00027397,7]
[334440187,1723101041544,-500.0,0.00027397,7]
[334440188,1723101041554,-501.26509976,0.00027397,7]
[334440189,1723101041566,-503.17186054,0.00027397,7]
[334440190,1723101041575,-500.0,0.00027397,7]
[334440191,1723101041584,-500.0,0.00027397,7]
[334440192,1723101041593,-500.0,0.00027397,7]
[334440193,1723101041603,-500.0,0.00027397,7]
[334440194,1723101041613,-500.0,0.00027397,7]
[334440195,1723101041625,-646.16877691,0.00027397,7]
[334440196,1723101041635,-500.0,0.00027397,7]
[334440197,1723101041646,-500.0,0.00027397,7]
[334440198,1723101041655,-500.0,0.00027397,7]
[334440199,1723101041665,-500.0,0.00027397,7]
[334440200,1723101041675,-550.89,0.00027397,7]
[334440201,1723101041684,-500.86677046,0.00027397,7]
[334440202,1723101041695,-500.0,0.00027397,7]
[334440203,1723101041705,-500.0,0.00027397,7]
[334440204,1723101041714,-504.04150244,0.00027397,7]
[334440205,1723101041727,-500.0,0.00027397,7]
[334440206,1723101041736,-500.0,0.00027397,7]
[334440207,1723101041747,-504.56980752,0.00027397,7]
[334440208,1723101041758,-501.11843849,0.00027397,7]
[334440209,1723101041767,-502.00639052,0.00027397,7]
[334440210,1723101041777,-500.0,0.00027397,7]
[334440211,1723101041787,-500.0,0.00027397,7]
[334440212,1723101041798,-500.0,0.00027397,7]
[334440213,1723101041807,-500.0,0.00027397,7]
[334440214,1723101041818,-500.0,0.00027397,7]
[334440215,1723101041827,-517.97,0.00027397,7]
[334440216,1723101041836,-543.25624282,0.00027397,7]
[334440217,1723101041847,-500.0,0.00027397,7]
[334440218,1723101041858,-505.05980849,0.00027397,7]
[334440219,1723101041867,-501.10561582,0.00027397,7]
[334440220,1723101041878,-500.0,0.00027397,7]
[334440221,1723101041888,-500.0,0.00027397,7]
[334440222,1723101041897,-500.0,0.00027397,7]
[334440223,1723101041906,-500.76014814,0.00027397,7]
[334440224,1723101041915,-500.0,0.00027397,7]
[334440225,1723101041926,-417.19383834,0.00027397,7]
[334440226,1723101041937,-500.0,0.00027397,7]
[334440227,1723101041946,-500.0,0.00027397,7]
[334440228,1723101041956,-533.88832438,0.00027397,7]
[334440229,1723101041967,-500.65385222,0.00027397,7]
[334440230,1723101041976,-261.94667527,0.00027397,7]
[334440231,1723101042429,-240.49168307,0.00027397,7]
[334440232,1723101042439,-410.81463489,0.00027397,7]
[334440233,1723101042464,-89.97665489,0.00027397,7]
[334440234,1723101042474,-501.14761608,0.00027397,7]
[334440235,1723101042484,-500.0,0.00027397,2]
[334440236,1723101042493,-500.0,0.00027397,7]
[334440237,1723101042506,-501.18642415,0.00027397,7]
[334440238,1723101042516,-279.90491616,0.00027397,7]
[334440239,1723101042528,-500.0,0.00027397,7]
[334440240,1723101042538,-367.64667449,0.00027397,7]
[334440241,1723101042547,-503.60324187,0.00027397,7]
[334440242,1723101042557,-500.0,0.00027397,7]
[334440243,1723101042567,-500.0,0.00027397,7]
[334440244,1723101042577,-500.0,0.00027397,7]
[334440245,1723101042587,-500.0,0.00027397,7]
[334440246,1723101042597,-500.0,0.00027397,7]
[334440247,1723101042608,-504.50701379,0.00027397,7]
[334440248,1723101042618,-212.56,0.00027397,7]
[334440249,1723101042628,-500.0,0.00027397,7]
[334440250,1723101042638,-503.48049863,0.00027397,7]
[334440251,1723101042648,-500.84658584,0.00027397,7]
[334440252,1723101042658,-500.0,0.00027397,7]
[334440253,1723101042669,-500.0,0.00027397,7]
[334440254,1723101042679,-500.0,0.00027397,7]
[334440255,1723101042689,-500.0,0.00027397,7]
[334440256,1723101042699,-500.0,0.00027397,7]
[334440257,1723101042710,-500.0,0.00027397,7]
[334440258,1723101042721,-500.0,0.00027397,7]
[334440259,1723101042731,-943.8,0.00027397,7]
[334440260,1723101042742,-505.25966261,0.00027397,7]
[334440261,1723101042752,-500.0,0.00027397,7]
[334440262,1723101042761,-500.0,0.00027397,7]
[334440263,1723101042771,-500.0,0.00027397,7]
[334440264,1723101042781,-500.0,0.00027397,7]
[334440265,1723101042791,-500.0,0.00027397,7]
[334440266,1723101042801,-500.0,0.00027397,7]
[334440267,1723101042810,-500.0,0.00027397,7]
[334440268,1723101042823,-500.0,0.00027397,7]
[334440269,1723101042833,-500.0,0.00027397,7]
[334440270,1723101042843,-500.0,0.00027397,7]
[334440271,1723101042852,-502.32246025,0.00027397,7]
[334440272,1723101042861,-500.0,0.00027397,7]
[334440273,1723101042872,-482.95790235,0.00027397,7]
[334440274,1723101042881,-501.61935866,0.00027397,7]
[334440275,1723101042891,-500.0,0.00027397,7]
[334440276,1723101042901,-500.0,0.00027397,7]
[334440277,1723101042911,-500.0,0.00027397,7]
[334440278,1723101042921,-537.61215408,0.00027397,7]
[334440279,1723101042931,-500.80310453,0.00027397,7]
[334440280,1723101042940,-500.0,0.00027397,7]
[334440281,1723101042950,-500.0,0.00027397,7]
[334440282,1723101042959,-500.0,0.00027397,7]
[334440283,1723101042969,-500.0,0.00027397,7]
[334440284,1723101042980,-500.0,0.00027397,7]
[334440285,1723101042990,-500.0,0.00027397,7]
[334440286,1723101043000,-500.0,0.00027397,7]
[334440287,1723101043010,-500.0,0.00027397,7]
[334440288,1723101043020,-500.0,0.00027397,7]
[334440289,1723101043029,-164.03824881,0.00027397,7]
[334440290,1723101043039,-500.0,0.00027397,7]
[334440291,1723101043048,-500.0,0.00027397,7]
[334440292,1723101043058,-500.0,0.00027397,7]
[334440293,1723101043071,-500.0,0.00027397,7]
[334440294,1723101043081,-542.6,0.00027397,7]
[334440295,1723101043090,-500.0,0.00027397,7]
[334440296,1723101043100,-502.27175704,0.00027397,7]
[334440297,1723101043110,-500.0,0.00027397,7]
[334440298,1723101043120,-500.0,0.00027397,7]
[334440299,1723101043130,-500.0,0.00027397,7]
[334440300,1723101043140,-500.0,0.00027397,7]
[334440301,1723101043150,-500.0,0.00027397,7]
[334440302,1723101043159,-562.00758773,0.00027397,7]
[334440303,1723101043170,-500.0,0.00027397,7]
[334440304,1723101043179,-515.72987825,0.00027397,7]
[334440305,1723101043189,-500.0,0.00027397,7]
[334440306,1723101043199,-501.36640129,0.00027397,7]
[334440307,1723101043209,-502.30998155,0.00027397,7]
[334440308,1723101043218,-501.27758262,0.00027397,7]
[334440309,1723101043228,-500.0,0.00027397,7]
[334440310,1723101043238,-500.0,0.00027397,7]
[334440311,1723101043248,-500.0,0.00027397,7]
[334440312,1723101043257,-500.0,0.00027397,7]
[334440313,1723101043266,-500.0,0.00027397,7]
[334440315,1723101043276,-500.0,0.00027397,7]
[334440316,1723101043286,-500.0,0.00027397,7]
[334440318,1723101043295,-500.0,0.00027397,7]
[334440321,1723101043305,-500.0,0.00027397,7]
[334440322,1723101043318,-500.0,0.00027397,7]
[334440325,1723101043329,-616.01023069,0.00027397,7]
[334440327,1723101043339,-500.0,0.00027397,7]
[334440329,1723101043348,-500.0,0.00027397,7]
[334440330,1723101043358,-500.49628931,0.00027397,7]
[334440332,1723101043368,-502.39296153,0.00027397,7]
[334440334,1723101043377,-500.0,0.00027397,7]
[334440335,1723101043387,-500.0,0.00027397,7]
[334440336,1723101043396,-500.0,0.00027397,7]
[334440337,1723101043406,-500.0,0.00027397,7]
[334440338,1723101043416,-1151.53,0.00027397,7]
[334440339,1723101043429,-495.81918734,0.00027397,7]
[334440340,1723101043440,-512.87510817,0.00027397,7]
[334440341,1723101043449,-500.0,0.00027397,7]
[334440342,1723101043460,-505.71482185,0.00027397,7]
[334440343,1723101043470,-500.0,0.00027397,7]
[334440344,1723101043481,-500.54070269,0.00027397,7]
[334440345,1723101043491,-500.0,0.00027397,7]
[334440346,1723101043502,-500.0,0.00027397,7]
[334440347,1723101043513,-500.0,0.00027397,7]
[334440348,1723101043523,-731.82,0.00027397,7]
[334440349,1723101043534,-500.0,0.00027397,7]
[334440350,1723101043545,-500.0,0.00027397,7]
[334440351,1723101043555,-378.1654324,0.00027397,7]
[334440352,1723101043569,-500.0,0.00027397,7]
[334440353,1723101043577,-506.48266255,0.00027397,7]
[334440354,1723101043586,-500.0,0.00027397,7]
[334440355,1723101043596,-500.0,0.00027397,7]
[334440356,1723101043605,-500.0,0.00027397,7]
[334440357,1723101043614,-500.0,0.00027397,7]
[334440358,1723101043623,-500.0,0.00027397,7]
[334440359,1723101043634,-500.0,0.00027397,7]
[334440360,1723101043645,-503.0343729,0.00027397,7]
[334440361,1723101043654,-500.0,0.00027397,7]
[334440362,1723101043663,-1739.81,0.00027397,7]
[334440363,1723101043673,-500.0,0.00027397,7]
[334440364,1723101043682,-500.0,0.00027397,7]
[334440365,1723101043692,-500.0,0.00027397,7]
[334440366,1723101043701,-612.5,0.00027397,7]
[334440367,1723101043711,-500.0,0.00027397,7]
[334440368,1723101043721,-500.0,0.00027397,7]
[334440369,1723101043731,-500.0,0.00027397,7]
[334440370,1723101043740,-500.0,0.00027397,7]
[334440371,1723101043750,-503.04878791,0.00027397,7]
[334440372,1723101043759,-601.24,0.00027397,7]
[334440373,1723101043769,-501.78520587,0.00027397,7]
[334440374,1723101043779,-500.0,0.00027397,7]
[334440375,1723101043789,-500.0,0.00027397,7]
[334440376,1723101043798,-501.56228722,0.00027397,7]
[334440377,1723101043808,-500.0,0.00027397,7]
[334440378,1723101043820,-500.0,0.00027397,7]
[334440379,1723101043830,-500.0,0.00027397,7]
[334440380,1723101043844,-702.87,0.00027397,7]
[334440381,1723101043858,-500.0,0.00027397,7]
[334440382,1723101043872,-523.17,0.00027397,7]
[334440383,1723101043886,-500.0,0.00027397,7]
[334440384,1723101043897,-200.56675743,0.00027397,7]
[334440385,1723101043908,-500.0,0.00027397,7]
[334440386,1723101043921,-500.0,0.00027397,7]
[334440387,1723101043932,-502.92972566,0.00027397,7]
[334440388,1723101043945,-500.0,0.00027397,7]
[334440389,1723101043957,-500.0,0.00027397,7]
[334440390,1723101043970,-500.0,0.00027397,7]
[334440391,1723101043983,-502.08967705,0.00027397,7]
[334440392,1723101043996,-501.27095934,0.00027397,7]
[334440393,1723101044009,-500.0,0.00027397,7]
[334440394,1723101044022,-1123.15,0.00027397,7]
[334440395,1723101044034,-515.8683105,0.00027397,7]
[334440396,1723101044046,-500.0,0.00027397,7]
[334440397,1723101044058,-500.0,0.00027397,7]
[334440398,1723101044073,-500.0,0.00027397,7]
[334440399,1723101044086,-500.0,0.00027397,7]
[334440400,1723101044098,-496.0,0.00027397,7]
[334440401,1723101044109,-500.0,0.00027397,7]
[334440402,1723101044121,-500.0,0.00027397,7]
[334440403,1723101044131,-500.0,0.00027397,7]
[334440404,1723101044141,-500.0,0.00027397,7]
[334440405,1723101044154,-1265.76,0.00027397,7]
[334440406,1723101044165,-500.0,0.00027397,7]
[334440408,1723101044177,-500.0,0.00027397,7]
[334440410,1723101044189,-500.0,0.00027397,7]
[334440413,1723101044202,-500.0,0.00027397,7]
[334440415,1723101044214,-302.81918853,0.00027397,7]
[334440417,1723101044227,-801.95,0.00027397,7]
[334440419,1723101044240,-500.0,0.00027397,7]
[334440420,1723101044253,-500.0,0.00027397,7]
[334440421,1723101044266,-500.0,0.00027397,7]
[334440422,1723101044278,-1483.68,0.00027397,7]
[334440423,1723101044288,-503.62180148,0.00027397,7]
[334440424,1723101044299,-500.0,0.00027397,7]
[334440425,1723101044310,-200.0,0.00027397,7]
[334440426,1723101044326,-500.0,0.00027397,7]
[334440427,1723101044338,-500.0,0.00027397,7]
[334440428,1723101044350,-500.0,0.00027397,7]
[334440429,1723101044362,-500.0,0.00027397,7]
[334440430,1723101044372,-500.0,0.00027397,7]
[334440431,1723101044384,-500.0,0.00027397,7]
[334440432,1723101044396,-500.0,0.00027397,7]
[334440433,1723101044406,-501.5616108,0.00027397,7]
[334440434,1723101044420,-500.0,0.00027397,7]
[334440435,1723101044435,-500.0,0.00027397,2]
[334440436,1723101044445,-501.01373827,0.00027397,7]
[334440437,1723101044457,-500.0,0.00027397,7]
[334440438,1723101044467,-500.0,0.00027397,7]
[334440439,1723101044479,-500.0,0.00027397,7]
[334440440,1723101044490,-500.72339024,0.00027397,7]
[334440441,1723101044501,-618.81,0.00027397,7]
[334440442,1723101044512,-776.16994128,0.00027397,5]
[334440443,1723101044523,-500.0,0.00027397,7]
[334440444,1723101044534,-500.0,0.00027397,7]
[334440445,1723101044545,-500.0,0.00027397,7]
[334440446,1723101044559,-508.13894592,0.00027397,7]
[334440447,1723101044581,-500.63652447,0.00027397,7]
[334440448,1723101044600,-500.0,0.00027397,7]
[334440449,1723101044615,-502.96226065,0.00027397,7]
[334440450,1723101044629,-500.0,0.00027397,7]
[334440451,1723101044644,-735.05,0.00027397,7]
[334440452,1723101044658,-1637.19,0.00027397,7]
[334440453,1723101044672,-500.0,0.00027397,7]
[334440454,1723101044684,-500.0,0.00027397,7]
[334440455,1723101044697,-500.0,0.00027397,7]
[334440456,1723101044710,-500.0,0.00027397,7]
[334440457,1723101044723,-983.37,0.00027397,7]
[334440458,1723101044735,-502.07808025,0.00027397,7]
[334440459,1723101044748,-500.0,0.00027397,7]
[334440460,1723101044760,-500.0,0.00027397,7]
[334440461,1723101044772,-633.43,0.00027397,7]
[334440462,1723101044784,-1560.89,0.00027397,7]
[334440463,1723101044797,-501.54936867,0.00027397,7]
[334440464,1723101044810,-502.57389533,0.00027397,7]
[334440465,1723101044824,-544.07,0.00027397,7]
[334440466,1723101044836,-501.20008223,0.00027397,7]
[334440467,1723101044848,-500.0,0.00027397,7]
[334440468,1723101044861,-1700.66,0.00027397,7]
[334440469,1723101044873,-500.0,0.00027397,7]
[334440470,1723101044885,-500.0,0.00027397,7]
[334440471,1723101044898,-771.49,0.00027397,7]
[334440472,1723101044909,-524.3966782,0.00027397,7]
[334440473,1723101044922,-500.0,0.00027397,7]
[334440474,1723101044934,-500.0,0.00027397,7]
[334440475,1723101044947,-500.0,0.00027397,7]
[334440476,1723101044960,-500.0,0.00027397,7]
[334440477,1723101044973,-500.0,0.00027397,7]
[334440478,1723101044984,-500.0,0.00027397,7]
[334440479,1723101044997,-500.0,0.00027397,7]
[334440480,1723101045008,-500.45592668,0.00027397,7]
[334440481,1723101045023,-500.0,0.00027397,7]
[334440482,1723101045035,-501.39781597,0.00027397,7]
[334440483,1723101045047,-500.0,0.00027397,7]
[334440484,1723101045058,-500.0,0.00027397,7]
[334440485,1723101045071,-599.93,0.00027397,7]
[334440486,1723101045082,-500.0,0.00027397,7]
[334440487,1723101045093,-500.0,0.00027397,7]
[334440488,1723101045104,-930.49,0.00027397,7]
[334440489,1723101045115,-500.0,0.00027397,7]
[334440490,1723101045127,-500.0,0.00027397,7]
[334440491,1723101045138,-573.39,0.00027397,7]
[334440492,1723101045150,-500.0,0.00027397,7]
[334440493,1723101045161,-500.0,0.00027397,7]
[334440494,1723101045171,-500.0,0.00027397,7]
[334440495,1723101045184,-500.30179056,0.00027397,7]
[334440496,1723101045196,-500.0,0.00027397,7]
[334440497,1723101045208,-500.0,0.00027397,7]
[334440498,1723101045220,-500.0,0.00027397,7]
[334440499,1723101045232,-500.0,0.00027397,7]
[334440500,1723101045243,-807.06,0.00027397,7]
[334440501,1723101045254,-500.0,0.00027397,7]
[334440502,1723101045266,-500.0,0.00027397,7]
[334440503,1723101045277,-500.0,0.00027397,7]
[334440504,1723101045295,-500.0,0.00027397,7]
[334440505,1723101045306,-500.0,0.00027397,7]
[334440506,1723101045319,-837.55,0.00027397,7]
[334440507,1723101045330,-500.0,0.00027397,7]
[334440508,1723101045340,-500.25730008,0.00027397,7]
[334440509,1723101045352,-500.0,0.00027397,7]
[334440510,1723101045363,-500.0,0.00027397,7]
[334440511,1723101045374,-501.33308208,0.00027397,7]
[334440512,1723101045391,-500.0,0.00027397,7]
[334440513,1723101045403,-901.73,0.00027397,7]
[334440514,1723101045417,-500.0,0.00027397,7]
[334440515,1723101045432,-541.3,0.00027397,7]
[334440516,1723101045445,-500.0,0.00027397,7]
[334440517,1723101045458,-501.06054938,0.00027397,7]
[334440518,1723101045471,-500.0,0.00027397,7]
[334440519,1723101045483,-500.0,0.00027397,7]
[334440520,1723101045495,-500.0,0.00027397,7]
[334440521,1723101045509,-901.96,0.00027397,7]
[334440522,1723101045523,-500.0,0.00027397,7]
[334440523,1723101045536,-819.32,0.00027397,7]
[334440524,1723101045550,-526.74532525,0.00027397,7]
[334440525,1723101045561,-500.0,0.00027397,7]
[334440526,1723101045582,-500.0,0.00027397,7]
[334440527,1723101045594,-502.93550051,0.00027397,7]
[334440528,1723101045605,-1464.57,0.00027397,7]
[334440529,1723101045617,-500.0,0.00027397,7]
[334440530,1723101045628,-500.0,0.00027397,7]
[334440531,1723101045640,-500.0,0.00027397,7]
[334440532,1723101045651,-500.0,0.00027397,7]
[334440533,1723101045662,-500.0,0.00027397,7]
[334440534,1723101045674,-500.0,0.00027397,7]
[334440535,1723101045684,-500.0,0.00027397,7]
[334440536,1723101045695,-500.0,0.00027397,7]
[334440537,1723101045707,-500.0,0.00027397,7]
[334440538,1723101045719,-500.0,0.00027397,7]
[334440539,1723101045731,-500.0,0.00027397,7]
[334440540,1723101045741,-500.0,0.00027397,7]
[334440541,1723101045753,-500.0,0.00027397,7]
[334440542,1723101045764,-500.0,0.00027397,7]
[334440543,1723101045776,-500.0,0.00027397,7]
[334440544,1723101045787,-501.97172639,0.00027397,7]
[334440545,1723101045798,-500.0,0.00027397,7]
[334440546,1723101045809,-500.0,0.00027397,7]
[334440547,1723101045824,-500.0,0.00027397,7]
[334440548,1723101045835,-500.0,0.00027397,7]
[334440549,1723101045846,-500.0,0.00027397,7]
[334440550,1723101045857,-500.0,0.00027397,7]
[334440551,1723101045868,-292.40055204,0.00027397,7]
[334440552,1723101045880,-1046.76,0.00027397,7]
[334440553,1723101045891,-500.0,0.00027397,7]
[334440554,1723101045902,-500.0,0.00027397,7]
[334440555,1723101045913,-500.0,0.00027397,7]
[334440556,1723101045924,-500.0,0.00027397,7]
[334440557,1723101045934,-585.31,0.00027397,7]
[334440558,1723101045943,-177.47221127,0.00027397,7]
[334440559,1723101045952,-500.0,0.00027397,7]
[334440560,1723101045962,-606.05,0.00027397,7]
[334440561,1723101045971,-500.0,0.00027397,7]
[334440562,1723101045980,-500.0,0.00027397,7]
[334440563,1723101045990,-500.0,0.00027397,7]
[334440564,1723101046000,-500.0,0.00027397,7]
[334440565,1723101046009,-501.13304307,0.00027397,7]
[334440566,1723101046018,-574.14,0.00027397,7]
[334440567,1723101046028,-500.0,0.00027397,7]
[334440568,1723101046038,-501.17731357,0.00027397,7]
[334440569,1723101046047,-501.74504768,0.00027397,7]
[334440570,1723101046056,-500.0,0.00027397,7]
[334440571,1723101046070,-544.27,0.00027397,7]
[334440572,1723101046366,-500.90804881,0.00027397,7]
[334440573,1723101046384,-500.0,0.00027397,7]
[334440574,1723101046395,-537.96,0.00027397,7]
[334440575,1723101046405,-502.52733592,0.00027397,7]
[334440576,1723101046415,-500.0,0.00027397,7]
[334440577,1723101046425,-417.79071139,0.00027397,7]
[334440579,1723101046439,-500.0,0.00027397,7]
[334440580,1723101046449,-500.0,0.00027397,7]
[334440581,1723101046459,-502.14838966,0.00027397,7]
[334440582,1723101046469,-500.0,0.00027397,7]
[334440583,1723101046478,-500.0,0.00027397,7]
[334440584,1723101046488,-500.0,0.00027397,7]
[334440585,1723101046497,-501.63373428,0.00027397,7]
[334440586,1723101046508,-500.0,0.00027397,7]
[334440587,1723101046517,-500.42795888,0.00027397,7]
[334440588,1723101046527,-500.0,0.00027397,7]
[334440589,1723101046536,-500.0,0.00027397,7]
[334440590,1723101046545,-501.14527399,0.00027397,7]
[334440591,1723101046554,-500.0,0.00027397,7]
[334440592,1723101046565,-500.2827213,0.00027397,7]
[334440593,1723101046574,-500.0,0.00027397,7]
[334440594,1723101046583,-500.0,0.00027397,7]
[334440596,1723101046593,-500.0,0.00027397,7]
[334440598,1723101046602,-501.18315458,0.00027397,7]
[334440599,1723101046611,-1432.52,0.00027397,7]
[334440603,1723101046631,-500.0,0.00027397,7]
[334440604,1723101046641,-500.0,0.00027397,7]
[334440605,1723101046651,-932.75,0.00027397,7]
[334440606,1723101046662,-502.73880892,0.00027397,7]
[334440607,1723101046671,-500.0,0.00027397,7]
[334440608,1723101046681,-500.0,0.00027397,7]
[334440609,1723101046690,-500.0,0.00027397,7]
[334440610,1723101046700,-500.0,0.00027397,7]
[334440611,1723101046710,-500.0,0.00027397,7]
[334440612,1723101046720,-500.0,0.00027397,7]
[334440613,1723101046729,-500.0,0.00027397,7]
[334440614,1723101046739,-500.0,0.00027397,7]
[334440615,1723101046749,-500.0,0.00027397,7]
[334440616,1723101046758,-500.0,0.00027397,7]
[334440617,1723101046768,-501.41645297,0.00027397,7]
[334440618,1723101046778,-500.0,0.00027397,7]
[334440619,1723101046787,-500.0,0.00027397,7]
[334440620,1723101046797,-500.0,0.00027397,7]
[334440621,1723101046806,-500.0,0.00027397,7]
[334440622,1723101046818,-1316.03,0.00027397,7]
[334440623,1723101046827,-500.46747427,0.00027397,7]
[334440624,1723101046838,-500.0,0.00027397,7]
[334440625,1723101046847,-500.0,0.00027397,7]
[334440626,1723101046857,-179.26720444,0.00027397,7]
[334440627,1723101046867,-500.0,0.00027397,7]
[334440628,1723101046878,-500.0,0.00027397,7]
[334440629,1723101046888,-1025.01,0.00027397,7]
[334440630,1723101046899,-1373.55,0.00027397,7]
[334440631,1723101046911,-763.4,0.00027397,7]
[334440632,1723101046922,-500.0,0.00027397,7]
[334440633,1723101046933,-500.78420234,0.00027397,7]
[334440634,1723101046943,-500.0,0.00027397,7]
[334440635,1723101046953,-400.52575816,0.00027397,7]
[334440636,1723101046962,-998.63,0.00027397,7]
[334440637,1723101046972,-500.0,0.00027397,7]
[334440638,1723101046982,-500.0,0.00027397,7]
[334440639,1723101046991,-507.68751428,0.00027397,7]
[334440640,1723101047001,-818.09,0.00027397,7]
[334440641,1723101047011,-500.0,0.00027397,7]
[334440642,1723101047021,-500.0,0.00027397,7]
[334440643,1723101047031,-500.0,0.00027397,7]
[334440644,1723101047041,-500.0,0.00027397,7]
[334440645,1723101047051,-500.0,0.00027397,7]
[334440646,1723101047061,-878.39,0.00027397,7]
[334440647,1723101047074,-500.68214296,0.00027397,7]
[334440648,1723101047084,-500.0,0.00027397,7]
[334440649,1723101047094,-500.0,0.00027397,7]
[334440650,1723101047103,-500.0,0.00027397,7]
[334440651,1723101047113,-500.0,0.00027397,7]
[334440652,1723101047123,-500.0,0.00027397,7]
[334440653,1723101047132,-500.0,0.00027397,7]
[334440654,1723101047142,-500.0,0.00027397,7]
[334440655,1723101047152,-500.0,0.00027397,7]
[334440656,1723101047162,-524.08337142,0.00027397,7]
[334440657,1723101047171,-502.01469349,0.00027397,7]
[334440658,1723101047181,-500.0,0.00027397,7]
[334440659,1723101047192,-500.0,0.00027397,7]
[334440660,1723101047202,-500.0,0.00027397,7]
[334440661,1723101047211,-500.0,0.00027397,7]
[334440662,1723101047222,-500.0,0.00027397,7]
[334440663,1723101047233,-500.0,0.00027397,7]
[334440664,1723101047243,-500.0,0.00027397,7]
[334440665,1723101047253,-500.0,0.00027397,7]
[334440666,1723101047263,-500.0,0.00027397,7]
[334440667,1723101047272,-500.0,0.00027397,7]
[334440668,1723101047283,-500.0,0.00027397,7]
[334440669,1723101047293,-500.0,0.00027397,7]
[334440670,1723101047303,-315.16960943,0.00027397,7]
[334440671,1723101047312,-576.99,0.00027397,7]
[334440672,1723101047326,-500.0,0.00027397,7]
[334440673,1723101047336,-576.99,0.00027397,7]
[334440674,1723101047345,-576.99,0.00027397,7]
[334440675,1723101047355,-500.0,0.00027397,7]
[334440676,1723101047364,-576.99,0.00027397,7]
[334440677,1723101047374,-576.99,0.00027397,7]
[334440678,1723101047384,-576.99,0.00027397,7]
[334440679,1723101047393,-576.99,0.00027397,7]
[334440680,1723101047403,-576.99,0.00027397,7]
[334440681,1723101047413,-576.99,0.00027397,7]
[334440682,1723101047423,-576.99,0.00027397,7]
[334440683,1723101047437,-500.0,0.00027397,7]
[334440684,1723101047447,-500.80689215,0.00027397,7]
[334440685,1723101047456,-576.99,0.00027397,7]